[Event "SRB-ch Semifinal 2021"]
[Site "Paracin"]
[Date "2021.03.20"]
[Round "6.6"]
[White "Irizanin, Radoje"]
[Black "Ratkovic, Milovan"]
[Result "0-1"]
[ECO "D00"]
[WhiteElo "2343"]
[BlackElo "2462"]
[Annotator "ChessBase"]
[PlyCount "72"]
[EventDate "2021.03.16"]
[EventType "swiss"]
[EventCountry "SRB"]
[SourceTitle "playchess.com"]
[Source "ChessBase"]
[SourceQuality "1"]
[TimeControl "40/5400+30:1800+30"]

1. d4 {[%emt 0:00:07]} d5 {[%emt 0:00:08]} 2. Bf4 {[%emt 0:00:57]} c5 {[%emt 0:00:10]} 3. e3 {[%emt 0:00:06]} cxd4 {[%emt 0:00:08]} 4. exd4 {[%emt 0:00:10]} Nc6 {[%emt 0:00:30]} 5. c3 {[%emt 0:00:30]} Bf5 {[%emt 0:00:30]} 6. Nf3 {[%emt 0:01:12]} a6 {[%emt 0:01:05]} 7. Nbd2 {[%emt 0:02:02]} e6 {[%emt 0:00:37]} 8. Be2 {[%emt 0:01:14]} Nf6 {[%emt 0:02:11]} 9. Nh4 {[%emt 0:03:42]} Be4 {[%emt 0:04:20]} 10. Nxe4 {[%emt 0:04:59]} Nxe4 {[%emt 0:01:40]} 11. Nf3 {[%emt 0:00:40]} Bd6 {[%emt 0:05:12]} 12. Bxd6 {[%emt 0:01:21]} Qxd6 {[%emt 0:01:15]} 13. O-O {[%emt 0:01:48]} O-O {[%emt 0:00:13]} 14. Bd3 {[%emt 0:02:31]} f5 {[%emt 0:00:30]} 15. Qe2 {[%emt 0:02:50]} Rae8 {[%emt 0:23:07]} 16. Rae1 {[%emt 0:03:14]} Kh8 {[%emt 0:08:20]} 17. Ne5 {[%emt 0:07:05]} Nxe5 {[%emt 0:03:49]} 18. dxe5 {[%emt 0:00:19]} Qc7 {[%emt 0:01:50]} 19. Kh1 {[%emt 0:06:25]} Nc5 {[%emt 0:02:56]} 20. Bb1 {[%emt 0:03:11]} b5 {[%emt 0:05:05]} 21. f3 {[%emt 0:04:14]} Rb8 {[%emt 0:03:42]} 22. g4 {[%emt 0:12:50]} fxg4 {[%emt 0:07:22]} 23. fxg4 {[%emt 0:01:08]} Nd7 {[%emt 0:00:30]} 24. g5 {[%emt 0:06:42]} g6 {[%emt 0:11:24]} 25. Qg4 {[%emt 0:09:52]} Rxf1+ {[%emt 0:04:14]} 26. Rxf1 {[%emt 0:00:10]} Qxe5 {[%emt 0:01:17]} 27. Qb4 {[%emt 0:02:49]} Kg8 {[%emt 0:02:27]} 28. Bd3 {[%emt 0:04:45]} Rf8 {[%emt 0:01:06]} 29. Rxf8+ {[%emt 0:03:24]} Nxf8 {[%emt 0:00:06]} 30. Qg4 {[%emt 0:01:28]} Qe1+ {[%emt 0:01:10]} 31. Kg2 {[%emt 0:00:08]} Qd2+ {[%emt 0:00:23]} 32. Qe2 {[%emt 0:00:07]} Qxg5+ 33. Kh1 {[%emt 0:00:12]} e5 {[%emt 0:02:20]} 34. a4 {[%emt 0:01:54]} bxa4 {[%emt 0:01:52]} 35. Bxa6 {[%emt 0:00:57]} Ne6 {[%emt 0:00:40]} 36. Bb7 {[%emt 0:03:22]} Qc1+ {[%emt 0:00:13]} 0-1

[Event "SRB-ch Semifinal 2021"]
[Site "Paracin"]
[Date "2021.03.20"]
[Round "6.7"]
[White "Popovic, Milan S"]
[Black "Perunovic, Miodrag"]
[Result "1-0"]
[ECO "B27"]
[WhiteElo "2327"]
[BlackElo "2428"]
[Annotator "NA"]
[PlyCount "55"]
[EventDate "2021.03.16"]
[EventType "swiss"]
[EventCountry "SRB"]
[SourceTitle "playchess.com"]
[Source "ChessBase"]
[SourceQuality "1"]
[TimeControl "40/5400+30:1800+30"]

1. e4 {[%emt 0:00:00]} c5 {[%emt 0:00:00]} 2. Nf3 {[%emt 0:00:00]} g6 {[%emt 0:00:00]} 3. c3 {[%emt 0:00:00]} Nf6 {[%emt 0:00:23]} 4. e5 {[%emt 0:00:00]} Nd5 {[%emt 0:00:06]} 5. d4 {[%emt 0:00:00]} cxd4 {[%emt 0:00:18]} 6. Qxd4 {[%emt 0:00:02]} e6 {[%emt 0:02:45]} 7. Bc4 {[%emt 0:00:35]} Nc6 {[%emt 0:00:27]} 8. Qe4 {[%emt 0:00:05]} Nb6 {[%emt 0:01:22]} 9. Bb3 {[%emt 0:02:57]} d5 {[%emt 0:00:20]} 10. exd6 {[%emt 0:00:59]} Qxd6 {[%emt 0:04:12]} 11. Bf4 {[%emt 0:01:08]} Qc5 {[%emt 0:09:25]} 12. O-O {[%emt 0:02:20]} Bg7 {[%emt 0:05:49]} 13. Rd1 {[%emt 0:03:02]} e5 {[%emt 0:08:33]} 14. Na3 {[%emt 0:31:01]} O-O {[%emt 0:02:07]} 15. Be3 {[%emt 0:01:43]} Qe7 {[%emt 0:00:02]} 16. Bg5 {[%emt 0:02:10]} Qc5 {[%emt 0:00:34]} 17. Be3 {[%emt 0:01:35]} Qe7 {[%emt 0:00:07]} 18. Bg5 {[%emt 0:02:24]} Qc5 {[%emt 0:02:18]} 19. Qh4 {[%emt 0:03:35]} h5 {[%emt 0:08:52]} 20. Be3 {[%emt 0:06:04]} Qa5 {[%emt 0:11:03]} 21. Rd6 {[%emt 0:03:48]} Bf5 {[%emt 0:00:16]} 22. g4 {[%emt 0:05:20]} Ne7 {[%emt 0:41:26]} 23. Qxe7 {[%emt 0:02:53]} Nc8 {[%emt 0:00:09]} 24. Rd5 {[%emt 0:00:16]} Qxd5 {[%emt 0:00:32]} 25. Qxf8+ {[%emt 0:00:04]} Kxf8 {[%emt 0:00:13]} 26. Bxd5 {[%emt 0:00:03]} hxg4 {[%emt 0:00:08]} 27. Ng5 {[%emt 0:00:45]} Ne7 {[%emt 0:00:07]} 28. Bxf7 {[%emt 0:00:24]} 1-0

[Event "SRB-ch Semifinal 2021"]
[Site "Paracin"]
[Date "2021.03.20"]
[Round "6.10"]
[White "Rasic, Milovan"]
[Black "Abramovic, Bosko"]
[Result "0-1"]
[ECO "A13"]
[WhiteElo "1606"]
[BlackElo "2330"]
[Annotator "NA"]
[PlyCount "60"]
[EventDate "2021.03.16"]
[EventType "swiss"]
[EventCountry "SRB"]
[SourceTitle "playchess.com"]
[Source "ChessBase"]
[SourceQuality "1"]
[TimeControl "40/5400+30:1800+30"]

1. c4 {[%emt 0:00:26]} e6 {[%emt 0:00:24]} 2. Nc3 {[%emt 0:02:42]} d5 {[%emt 0:00:24]} 3. e3 {[%emt 0:01:17]} Nf6 {[%emt 0:00:20]} 4. cxd5 {[%emt 0:03:34]} exd5 {[%emt 0:00:10]} 5. d4 {[%emt 0:00:42]} c6 {[%emt 0:00:42]} 6. a3 {[%emt 0:03:48]} Bf5 {[%emt 0:00:52]} 7. Bd3 {[%emt 0:01:53]} Bxd3 {[%emt 0:00:30]} 8. Qxd3 {[%emt 0:00:43]} Nbd7 {[%emt 0:00:14]} 9. Nf3 {[%emt 0:00:44]} Bd6 {[%emt 0:00:11]} 10. b3 {[%emt 0:03:24]} O-O {[%emt 0:00:20]} 11. O-O {[%emt 0:00:14]} Re8 {[%emt 0:00:36]} 12. Bb2 {[%emt 0:00:36]} Ne4 {[%emt 0:02:04]} 13. Nd2 {[%emt 0:04:21]} f5 {[%emt 0:00:23]} 14. f4 {[%emt 0:04:28]} Nxd2 {[%emt 0:03:35]} 15. Qxd2 {[%emt 0:01:54]} Re6 {[%emt 0:00:18]} 16. Rae1 {[%emt 0:00:53]} Qe7 {[%emt 0:00:30]} 17. Qc1 {[%emt 0:02:53]} Re8 {[%emt 0:00:09]} 18. Rf3 {[%emt 0:02:01]} Nf6 {[%emt 0:01:43]} 19. h3 {[%emt 0:02:52]} Nh5 {[%emt 0:03:10]} 20. g3 {[%emt 0:15:14]} g5 {[%emt 0:06:20]} 21. Nd1 {[%emt 0:14:37]} gxf4 {[%emt 0:00:47]} 22. gxf4 {[%emt 0:01:55]} Rg6+ {[%emt 0:00:59]} 23. Kf2 {[%emt 0:02:32]} Nxf4 {[%emt 0:01:14]} 24. Rxf4 {[%emt 0:03:46]} Bxf4 {[%emt 0:00:12]} 25. Ke2 {[%emt 0:02:19]} Rg3 {[%emt 0:02:48]} 26. Kd3 {[%emt 0:02:59]} Qe4+ {[%emt 0:00:31]} 27. Kc3 {[%emt 0:00:32]} Bxe3 {[%emt 0:00:14]} 28. Nxe3 {[%emt 0:01:15]} Rxe3+ {[%emt 0:00:10]} 29. Rxe3 {[%emt 0:00:14]} Qxe3+ {[%emt 0:00:07]} 30. Qxe3 {[%emt 0:01:18]} Rxe3+ {[%emt 0:00:12]} 0-1

[Event "SRB-ch Semifinal 2021"]
[Site "Paracin"]
[Date "2021.03.20"]
[Round "7.5"]
[White "Radovanovic, Nikola"]
[Black "Popovic, Milan S"]
[Result "1/2-1/2"]
[ECO "B15"]
[WhiteElo "2391"]
[BlackElo "2327"]
[Annotator "RC"]
[PlyCount "102"]
[EventDate "2021.03.16"]
[EventType "swiss"]
[EventCountry "SRB"]
[SourceTitle "playchess.com"]
[Source "ChessBase"]
[SourceQuality "1"]
[TimeControl "40/5400+30:1800+30"]

1. e4 c6 {[%emt 0:00:00]} 2. d4 {[%emt 0:07:15]} d5 {[%emt 0:00:00]} 3. Nd2 {[%emt 0:00:26]} dxe4 {[%emt 0:00:00]} 4. Nxe4 {[%emt 0:00:04]} Nf6 {[%emt 0:00:00]} 5. Nxf6+ {[%emt 0:00:21]} exf6 {[%emt 0:00:00]} 6. c3 {[%emt 0:00:07]} Bd6 {[%emt 0:00:00]} 7. Bd3 {[%emt 0:00:06]} Na6 {[%emt 0:00:00]} 8. Ne2 {[%emt 0:02:28]} Kf8 {[%emt 0:11:18]} 9. Be3 {[%emt 0:08:16]} h5 {[%emt 0:01:30]} 10. Qd2 {[%emt 0:02:23]} g6 {[%emt 0:02:44]} 11. O-O {[%emt 0:03:52]} Nc7 {[%emt 0:09:18]} 12. c4 {[%emt 0:10:14]} Kg7 {[%emt 0:04:53]} 13. f4 {[%emt 0:09:02]} f5 {[%emt 0:04:43]} 14. Nc3 {[%emt 0:02:58]} b6 {[%emt 0:20:41]} 15. Be2 {[%emt 0:05:43]} Bb7 {[%emt 0:01:09]} 16. Bf3 {[%emt 0:00:25]} Rb8 {[%emt 0:05:15]} 17. Rad1 {[%emt 0:01:46]} Ne8 {[%emt 0:10:10]} 18. d5 {[%emt 0:08:47]} c5 19. Nb5 {[%emt 0:00:54]} a6 {[%emt 0:06:06]} 20. Nxd6 {[%emt 0:00:23]} Nxd6 {[%emt 0:00:04]} 21. b4 {[%emt 0:05:49]} Qc7 {[%emt 0:01:04]} 22. bxc5 {[%emt 0:04:29]} bxc5 {[%emt 0:00:05]} 23. Qc3+ {[%emt 0:01:13]} Kh7 {[%emt 0:03:15]} 24. Bc1 {[%emt 0:04:55]} a5 {[%emt 0:00:05]} 25. Bb2 {[%emt 0:04:45]} Rhg8 {[%emt 0:00:04]} 26. Rfe1 {[%emt 0:02:30]} Ba6 {[%emt 0:00:09]} 27. Ba1 {[%emt 0:00:16]} Qd8 {[%emt 0:06:25]} 28. Be2 {[%emt 0:01:50]} Rb7 {[%emt 0:02:49]} 29. Bd3 {[%emt 0:03:20]} a4 {[%emt 0:03:17]} 30. Rb1 {[%emt 0:02:56]} Rd7 {[%emt 0:01:35]} 31. Re3 {[%emt 0:01:48]} Qh4 {[%emt 0:04:22]} 32. Rf1 {[%emt 0:04:13]} Qd8 {[%emt 0:00:36]} 33. Rfe1 {[%emt 0:02:07]} Rb7 {[%emt 0:02:00]} 34. Rh3 {[%emt 0:00:29]} Re7 {[%emt 0:00:28]} 35. Rhe3 {[%emt 0:00:18]} Rb7 {[%emt 0:00:56]} 36. Rh3 {[%emt 0:00:36]} Re7 {[%emt 0:00:05]} 37. Re5 {[%emt 0:00:41]} Rb7 {[%emt 0:01:52]} 38. Re1 Rb4 {[%emt 0:00:40]} 39. a3 {[%emt 0:01:13]} Rb3 {[%emt 0:00:09]} 40. Qc1 {[%emt 0:00:00]} Re8 {[%emt 0:00:00]} 41. Rxe8 {[%emt 0:13:08]} Qxe8 {[%emt 0:02:53]} 42. Re3 {[%emt 0:03:09]} Qf8 43. Bc2 {[%emt 0:01:31]} Rb7 {[%emt 0:10:02]} 44. Bxa4 Bxc4 {[%emt 0:03:43]} 45. Bc6 {[%emt 0:02:37]} Rb6 {[%emt 0:00:42]} 46. Re1 {[%emt 0:02:23]} f6 {[%emt 0:02:25]} 47. Qc3 {[%emt 0:05:46]} Kg7 {[%emt 0:00:36]} 48. Qa5 {[%emt 0:03:16]} Qb8 {[%emt 0:00:15]} 49. Qc3 {[%emt 0:01:14]} Qf8 {[%emt 0:00:14]} 50. Qa5 {[%emt 0:00:27]} Qb8 {[%emt 0:00:04]} 51. Qc3 {[%emt 0:00:44]} Qf8 {[%emt 0:00:03]} 1/2-1/2

[Event "SRB-ch Semifinal 2021"]
[Site "Paracin"]
[Date "2021.03.20"]
[Round "7.6"]
[White "Tadic, Stefan"]
[Black "Ivanovic, Marko"]
[Result "0-1"]
[ECO "B12"]
[WhiteElo "2419"]
[BlackElo "2274"]
[Annotator "NA"]
[PlyCount "58"]
[EventDate "2021.03.16"]
[EventType "swiss"]
[EventCountry "SRB"]
[SourceTitle "playchess.com"]
[Source "ChessBase"]
[SourceQuality "1"]
[TimeControl "40/5400+30:1800+30"]

1. e4 {[%emt 0:00:00]} c6 {[%emt 0:05:25]} 2. d4 {[%emt 0:00:43]} d5 {[%emt 0:00:08]} 3. e5 {[%emt 0:00:18]} c5 {[%emt 0:00:07]} 4. dxc5 {[%emt 0:01:03]} e6 {[%emt 0:00:30]} 5. Nd2 {[%emt 0:12:15]} Nc6 {[%emt 0:03:03]} 6. Ngf3 {[%emt 0:01:12]} Bxc5 {[%emt 0:00:16]} 7. Nb3 {[%emt 0:00:34]} Bb6 {[%emt 0:01:25]} 8. Bf4 {[%emt 0:03:45]} f6 {[%emt 0:05:40]} 9. Bg3 {[%emt 0:09:08]} fxe5 {[%emt 0:06:34]} 10. Nxe5 {[%emt 0:00:19]} Qf6 {[%emt 0:09:57]} 11. Nxc6 {[%emt 0:04:44]} bxc6 {[%emt 0:00:30]} 12. Bd3 {[%emt 0:01:24]} Ne7 {[%emt 0:07:21]} 13. Qe2 {[%emt 0:17:39]} O-O {[%emt 0:00:23]} 14. O-O {[%emt 0:05:19]} Ng6 {[%emt 0:16:44]} 15. c4 {[%emt 0:11:09]} Nf4 {[%emt 0:01:40]} 16. Bxf4 {[%emt 0:00:06]} Qxf4 {[%emt 0:00:05]} 17. c5 {[%emt 0:00:13]} Bc7 {[%emt 0:00:36]} 18. g3 {[%emt 0:00:04]} Qf3 {[%emt 0:00:30]} 19. Nd4 {[%emt 0:03:50]} Qf6 {[%emt 0:06:38]} 20. Nxc6 {[%emt 0:06:30]} Bd7 {[%emt 0:00:32]} 21. Nb4 {[%emt 0:00:28]} Rab8 {[%emt 0:00:09]} 22. a3 {[%emt 0:01:57]} a5 {[%emt 0:01:04]} 23. c6 {[%emt 0:04:55]} Be8 {[%emt 0:04:34]} 24. Na6 {[%emt 0:11:02]} Rxb2 {[%emt 0:00:12]} 25. Qg4 {[%emt 0:00:08]} h5 {[%emt 0:09:04]} 26. Qh4 {[%emt 0:01:07]} g5 {[%emt 0:00:04]} 27. Qh3 {[%emt 0:01:08]} Bb6 {[%emt 0:00:04]} 28. c7 {[%emt 0:00:27]} Rxf2 {[%emt 0:02:49]} 29. Rxf2 {[%emt 0:00:10]} Bxf2+ {[%emt 0:00:13]} 0-1

[Event "SRB-ch Semifinal 2021"]
[Site "Paracin"]
[Date "2021.03.20"]
[Round "7.7"]
[White "Zegarac, Vuk"]
[Black "Drazic, Sinisa"]
[Result "0-1"]
[ECO "D24"]
[WhiteElo "2386"]
[BlackElo "2334"]
[Annotator "NA"]
[PlyCount "62"]
[EventDate "2021.03.16"]
[EventType "swiss"]
[EventCountry "SRB"]
[SourceTitle "playchess.com"]
[Source "ChessBase"]
[SourceQuality "1"]
[TimeControl "40/5400+30:1800+30"]

1. d4 {[%emt 0:00:00]} d5 {[%emt 0:00:18]} 2. c4 {[%emt 0:00:00]} dxc4 {[%emt 0:00:15]} 3. Nf3 {[%emt 0:00:00]} Nf6 {[%emt 0:00:03]} 4. Nc3 {[%emt 0:00:00]} a6 {[%emt 0:04:09]} 5. e4 {[%emt 0:00:24]} b5 {[%emt 0:00:06]} 6. e5 {[%emt 0:00:05]} Nd5 {[%emt 0:00:02]} 7. a4 {[%emt 0:00:08]} e6 {[%emt 0:02:29]} 8. axb5 {[%emt 0:01:07]} Nb6 {[%emt 0:00:04]} 9. bxa6 {[%emt 0:00:37]} Rxa6 {[%emt 0:00:22]} 10. Rxa6 {[%emt 0:00:07]} Bxa6 {[%emt 0:00:14]} 11. Be2 {[%emt 0:02:08]} Be7 {[%emt 0:01:07]} 12. O-O {[%emt 0:00:23]} O-O {[%emt 0:00:11]} 13. Qc2 {[%emt 0:00:22]} Nc6 {[%emt 0:03:15]} 14. Qe4 {[%emt 0:02:02]} Qd7 {[%emt 0:02:47]} 15. Qg4 {[%emt 0:03:39]} f5 {[%emt 0:00:19]} 16. exf6 {[%emt 0:01:04]} Bxf6 {[%emt 0:00:09]} 17. Rd1 {[%emt 0:01:38]} e5 {[%emt 0:12:16]} 18. Qxd7 {[%emt 0:04:57]} Nxd7 {[%emt 0:00:02]} 19. Ne4 {[%emt 0:08:08]} exd4 {[%emt 0:04:53]} 20. Nxf6+ {[%emt 0:00:20]} Rxf6 {[%emt 0:00:06]} 21. Nxd4 {[%emt 0:01:15]} Nce5 {[%emt 0:00:13]} 22. Be3 {[%emt 0:04:58]} Rb6 {[%emt 0:01:25]} 23. Ra1 {[%emt 0:15:06]} c5 {[%emt 0:16:59]} 24. Nf5 {[%emt 0:05:46]} c3 {[%emt 0:01:58]} 25. Ne7+ {[%emt 0:01:49]} Kf7 {[%emt 0:03:19]} 26. Nd5 {[%emt 0:00:06]} cxb2 {[%emt 0:00:33]} 27. Rb1 {[%emt 0:00:05]} Rd6 {[%emt 0:00:23]} 28. Bxa6 {[%emt 0:00:55]} Rxa6 {[%emt 0:00:15]} 29. f4 {[%emt 0:00:12]} Nc4 {[%emt 0:00:57]} 30. Kf2 {[%emt 0:00:10]} Nf6 {[%emt 0:00:19]} 31. Nxf6 {[%emt 0:00:15]} gxf6 {[%emt 0:00:07]} 0-1

[Event "SRB-ch Semifinal 2021"]
[Site "Paracin"]
[Date "2021.03.20"]
[Round "7.9"]
[White "Martic, Ivan"]
[Black "Irizanin, Radoje"]
[Result "0-1"]
[ECO "D00"]
[WhiteElo "2321"]
[BlackElo "2343"]
[Annotator "NA"]
[PlyCount "87"]
[EventDate "2021.03.16"]
[EventType "swiss"]
[EventCountry "SRB"]
[SourceTitle "playchess.com"]
[Source "ChessBase"]
[SourceQuality "1"]
[TimeControl "40/5400+30:1800+30"]

1. d4 {[%emt 0:00:12]} d5 {[%emt 0:00:04]} 2. Bf4 {[%emt 0:00:53]} Bg4 {[%emt 0:00:13]} 3. f3 {[%emt 0:00:35]} Bf5 {[%emt 0:01:20]} 4. Nc3 {[%emt 0:03:18]} e6 {[%emt 0:04:46]} 5. e3 {[%emt 0:03:54]} Bd6 {[%emt 0:05:13]} 6. Nge2 {[%emt 0:02:49]} Ne7 {[%emt 0:04:07]} 7. Qd2 {[%emt 0:02:49]} Nbc6 {[%emt 0:08:51]} 8. Nb5 {[%emt 0:06:26]} Bxf4 {[%emt 0:04:08]} 9. Nxf4 {[%emt 0:00:22]} a6 {[%emt 0:02:10]} 10. Nc3 {[%emt 0:01:17]} Qd6 {[%emt 0:04:25]} 11. g4 {[%emt 0:14:13]} Bg6 {[%emt 0:01:23]} 12. h4 {[%emt 0:01:18]} f6 {[%emt 0:03:40]} 13. O-O-O {[%emt 0:04:53]} Bf7 {[%emt 0:05:37]} 14. Bh3 {[%emt 0:05:42]} O-O-O {[%emt 0:02:48]} 15. Na4 {[%emt 0:07:01]} Kb8 {[%emt 0:04:44]} 16. Qc3 {[%emt 0:08:06]} e5 {[%emt 0:08:11]} 17. Nd3 {[%emt 0:00:43]} exd4 {[%emt 0:01:16]} 18. exd4 {[%emt 0:00:08]} Nc8 {[%emt 0:00:49]} 19. Nac5 {[%emt 0:03:44]} Nb6 {[%emt 0:02:21]} 20. b3 {[%emt 0:01:07]} Rhe8 {[%emt 0:02:45]} 21. a4 {[%emt 0:01:35]} Nd7 {[%emt 0:05:18]} 22. Kb2 {[%emt 0:03:47]} Re3 {[%emt 0:06:56]} 23. Nxd7+ {[%emt 0:02:23]} Rxd7 {[%emt 0:00:41]} 24. f4 {[%emt 0:01:30]} Rde7 {[%emt 0:01:14]} 25. g5 {[%emt 0:04:21]} R7e4 {[%emt 0:02:23]} 26. Bf5 {[%emt 0:01:39]} Rxf4 {[%emt 0:02:32]} 27. Qd2 {[%emt 0:02:05]} Rff3 {[%emt 0:02:07]} 28. Ne1 {[%emt 0:04:22]} Rxe1 {[%emt 0:02:07]} 29. Rdxe1 {[%emt 0:00:57]} Rxf5 {[%emt 0:00:10]} 30. Rhf1 {[%emt 0:00:24]} Rxf1 {[%emt 0:02:37]} 31. Rxf1 {[%emt 0:00:06]} Bg6 {[%emt 0:00:39]} 32. gxf6 {[%emt 0:00:26]} gxf6 {[%emt 0:00:08]} 33. Qf2 {[%emt 0:01:31]} Be4 {[%emt 0:02:56]} 34. Qxf6 {[%emt 0:01:28]} Qxf6 {[%emt 0:00:29]} 35. Rxf6 {[%emt 0:00:06]} Nxd4 {[%emt 0:00:12]} 36. Rf8+ {[%emt 0:00:10]} Ka7 {[%emt 0:00:07]} 37. c3 {[%emt 0:00:10]} Nf5 {[%emt 0:04:46]} 38. h5 {[%emt 0:00:21]} Kb6 {[%emt 0:01:31]} 39. Rf6+ {[%emt 0:01:09]} Nd6 {[%emt 0:01:03]} 40. Kc1 {[%emt 0:00:00]} a5 {[%emt 0:00:00]} 41. Kd2 {[%emt 0:01:26]} Kc6 {[%emt 0:06:42]} 42. Rf8 {[%emt 0:01:58]} Kd7 {[%emt 0:02:06]} 43. Ra8 {[%emt 0:00:16]} b6 {[%emt 0:01:21]} 44. Ke1 0-1

[Event "SRB-ch Semifinal 2021"]
[Site "Paracin"]
[Date "2021.03.20"]
[Round "7.10"]
[White "Perunovic, Miodrag"]
[Black "Pajcin, Lav"]
[Result "1-0"]
[ECO "B30"]
[WhiteElo "2428"]
[BlackElo "2167"]
[Annotator "NA"]
[PlyCount "67"]
[EventDate "2021.03.16"]
[EventType "swiss"]
[EventCountry "SRB"]
[SourceTitle "playchess.com"]
[Source "ChessBase"]
[SourceQuality "1"]
[TimeControl "40/5400+30:1800+30"]

1. e4 {[%emt 0:00:00]} c5 {[%emt 0:00:00]} 2. Nc3 {[%emt 0:00:00]} Nc6 {[%emt 0:00:34]} 3. Bb5 {[%emt 0:00:00]} Nd4 {[%emt 0:02:08]} 4. Nf3 {[%emt 0:00:00]} e6 {[%emt 0:03:44]} 5. O-O {[%emt 0:00:00]} a6 {[%emt 0:02:54]} 6. Bd3 {[%emt 0:00:00]} Ne7 {[%emt 0:02:24]} 7. Nxd4 {[%emt 0:00:00]} cxd4 {[%emt 0:00:07]} 8. Ne2 {[%emt 0:00:02]} Nc6 {[%emt 0:01:03]} 9. c3 {[%emt 0:00:03]} dxc3 {[%emt 0:05:10]} 10. dxc3 {[%emt 0:00:03]} Be7 {[%emt 0:01:01]} 11. Bc2 {[%emt 0:01:20]} b5 {[%emt 0:06:13]} 12. f4 {[%emt 0:03:28]} Bb7 13. Be3 {[%emt 0:01:21]} Qc7 {[%emt 0:04:20]} 14. Kh1 {[%emt 0:00:43]} h5 {[%emt 0:05:20]} 15. Qe1 {[%emt 0:00:51]} h4 {[%emt 0:02:22]} 16. h3 {[%emt 0:00:01]} d6 {[%emt 0:03:13]} 17. Qf2 {[%emt 0:00:07]} Bf6 {[%emt 0:04:03]} 18. Rad1 {[%emt 0:00:35]} e5 {[%emt 0:08:20]} 19. Bb6 {[%emt 0:02:29]} Qe7 {[%emt 0:03:03]} 20. f5 {[%emt 0:01:02]} O-O {[%emt 0:01:37]} 21. Ng1 {[%emt 0:00:05]} a5 {[%emt 0:02:10]} 22. Nf3 {[%emt 0:00:29]} Ba6 {[%emt 0:01:36]} 23. Rd2 {[%emt 0:01:30]} Rab8 {[%emt 0:00:51]} 24. Rfd1 {[%emt 0:00:35]} Qb7 {[%emt 0:05:04]} 25. Be3 {[%emt 0:00:07]} Rfd8 {[%emt 0:02:47]} 26. Ng5 {[%emt 0:01:04]} Kf8 {[%emt 0:06:52]} 27. Qxh4 {[%emt 0:00:08]} Ke7 {[%emt 0:00:48]} 28. Qf2 {[%emt 0:00:01]} Ke8 {[%emt 0:01:51]} 29. Bb3 {[%emt 0:00:16]} Rd7 {[%emt 0:01:38]} 30. Rxd6 {[%emt 0:00:13]} Rbd8 {[%emt 0:02:15]} 31. Rxd7 {[%emt 0:00:29]} Rxd7 {[%emt 0:00:13]} 32. Rxd7 {[%emt 0:00:02]} Qxd7 {[%emt 0:01:09]} 33. Bxf7+ {[%emt 0:00:02]} Kd8 {[%emt 0:00:33]} 34. Bb6+ {[%emt 0:00:17]} 1-0

[Event "SRB-ch Semifinal 2021"]
[Site "Paracin"]
[Date "2021.03.21"]
[Round "8.1"]
[White "Budisavljevic, Luka"]
[Black "Ratkovic, Miloje"]
[Result "1-0"]
[ECO "B00"]
[WhiteElo "2510"]
[BlackElo "2497"]
[Annotator "ChessBase"]
[PlyCount "93"]
[EventDate "2021.03.16"]
[EventType "swiss"]
[EventCountry "SRB"]
[SourceTitle "playchess.com"]
[Source "ChessBase"]
[SourceQuality "1"]
[TimeControl "40/5400+30:1800+30"]

1. e4 {[%emt 0:00:00]} b6 {[%emt 0:00:38]} 2. d4 {[%emt 0:00:00]} Bb7 {[%emt 0:00:07]} 3. Bd3 {[%emt 0:00:36]} e6 {[%emt 0:00:24]} 4. Nf3 {[%emt 0:00:20]} c5 {[%emt 0:01:14]} 5. c3 {[%emt 0:00:27]} Nf6 {[%emt 0:00:59]} 6. Qe2 {[%emt 0:00:48]} Be7 {[%emt 0:02:21]} 7. O-O {[%emt 0:00:43]} Nc6 {[%emt 0:00:54]} 8. a3 {[%emt 0:04:09]} Na5 {[%emt 0:00:53]} 9. Nbd2 {[%emt 0:02:12]} c4 {[%emt 0:00:41]} 10. Bc2 {[%emt 0:01:23]} Qc7 {[%emt 0:00:57]} 11. Re1 {[%emt 0:04:53]} O-O {[%emt 0:00:20]} 12. Rb1 {[%emt 0:03:15]} Nh5 {[%emt 0:29:27]} 13. Nf1 {[%emt 0:14:08]} Nf4 {[%emt 0:03:24]} 14. Bxf4 {[%emt 0:05:02]} Qxf4 {[%emt 0:00:08]} 15. Ne5 {[%emt 0:00:59]} Bd6 {[%emt 0:18:44]} 16. Nxc4 {[%emt 0:14:12]} Nxc4 {[%emt 0:05:51]} 17. Qxc4 {[%emt 0:00:09]} f5 {[%emt 0:02:14]} 18. Re3 {[%emt 0:11:07]} fxe4 {[%emt 0:03:01]} 19. Qe2 {[%emt 0:00:07]} Ba6 {[%emt 0:06:23]} 20. Qe1 {[%emt 0:05:12]} Bxf1 {[%emt 0:02:09]} 21. g3 {[%emt 0:00:17]} Qg5 {[%emt 0:08:59]} 22. Qxf1 {[%emt 0:00:18]} Rf6 {[%emt 0:01:09]} 23. Qe2 {[%emt 0:05:09]} Raf8 {[%emt 0:06:08]} 24. Rf1 {[%emt 0:00:08]} h5 {[%emt 0:03:17]} 25. Rxe4 {[%emt 0:05:36]} Rh6 {[%emt 0:00:08]} 26. Rh4 {[%emt 0:06:15]} Be7 {[%emt 0:01:07]} 27. Bd1 {[%emt 0:01:25]} Rf5 {[%emt 0:01:19]} 28. Bc2 {[%emt 0:04:40]} Rf8 {[%emt 0:00:09]} 29. Re4 {[%emt 0:01:33]} h4 {[%emt 0:00:40]} 30. Re5 {[%emt 0:01:06]} Qf6 {[%emt 0:00:11]} 31. Rh5 {[%emt 0:00:55]} Bd6 {[%emt 0:00:47]} 32. Kg2 {[%emt 0:02:43]} hxg3 {[%emt 0:00:45]} 33. hxg3 {[%emt 0:00:43]} Kf7 {[%emt 0:00:28]} 34. Rxh6 {[%emt 0:00:07]} Qxh6 {[%emt 0:00:30]} 35. Rh1 {[%emt 0:00:04]} Qg5 {[%emt 0:00:21]} 36. Rh5 {[%emt 0:01:34]} Qc1 {[%emt 0:00:33]} 37. Rh1 {[%emt 0:04:20]} Qg5 {[%emt 0:00:15]} 38. Rh5 {[%emt 0:00:20]} Qc1 {[%emt 0:00:09]} 39. Bd3 {[%emt 0:01:38]} Ke7 {[%emt 0:00:35]} 40. f4 {[%emt 0:00:00]} Bxf4 {[%emt 0:00:00]} 41. gxf4 {[%emt 0:01:13]} Qxf4 {[%emt 0:01:12]} 42. Rh3 {[%emt 0:00:48]} Kd8 {[%emt 0:00:48]} 43. Qe3 {[%emt 0:00:48]} Qg4+ {[%emt 0:00:57]} 44. Rg3 {[%emt 0:00:17]} Qd1 {[%emt 0:00:17]} 45. Rxg7 {[%emt 0:05:23]} Rh8 {[%emt 0:03:03]} 46. Qg5+ {[%emt 0:00:14]} Kc7 {[%emt 0:00:07]} 47. Qe5+ {[%emt 0:00:15]} 1-0

[Event "SRB-ch Semifinal 2021"]
[Site "Paracin"]
[Date "2021.03.21"]
[Round "8.2"]
[White "Stankovic, Milos"]
[Black "Cabarkapa, Novak"]
[Result "1/2-1/2"]
[ECO "B30"]
[WhiteElo "2414"]
[BlackElo "2455"]
[Annotator "ChessBase"]
[PlyCount "25"]
[EventDate "2021.03.16"]
[EventType "swiss"]
[EventCountry "SRB"]
[SourceTitle "playchess.com"]
[Source "ChessBase"]
[SourceQuality "1"]
[TimeControl "40/5400+30:1800+30"]

1. e4 {[%emt 0:00:38]} c5 {[%emt 0:00:32]} 2. Nf3 {[%emt 0:00:34]} Nc6 {[%emt 0:00:03]} 3. Bb5 {[%emt 0:00:36]} e6 {[%emt 0:00:05]} 4. O-O {[%emt 0:01:39]} Nge7 {[%emt 0:00:08]} 5. d4 {[%emt 0:01:21]} cxd4 {[%emt 0:00:10]} 6. Nxd4 {[%emt 0:00:32]} Ng6 {[%emt 0:00:10]} 7. Be3 {[%emt 0:01:33]} Be7 {[%emt 0:00:42]} 8. Nc3 {[%emt 0:01:25]} O-O {[%emt 0:01:00]} 9. Be2 {[%emt 0:00:29]} b6 {[%emt 0:04:27]} 10. Nb3 {[%emt 0:04:48]} Bb7 {[%emt 0:01:26]} 11. f4 {[%emt 0:00:28]} Qc8 {[%emt 0:03:31]} 12. Nb5 {[%emt 0:08:19]} f5 {[%emt 0:09:43]} 13. e5 {[%emt 0:27:08]} 1/2-1/2